[Event "Centenario Panaderia Pulido 2023"]
[Site "San Mateo Gran Canaria"]
[Date "2023.12.09"]
[Round "9.12"]
[White "Mamani Beltran, Deniman"]
[Black "Guerrero Orihuela, Jose Luis"]
[Result "1-0"]
[ECO "B20"]
[WhiteElo "2151"]
[BlackElo "1901"]
[Annotator "ChessBase"]
[PlyCount "77"]
[EventDate "2023.12.04"]
[EventType "swiss"]
[EventCountry "ESP"]
[SourceTitle "playchess.com"]
[Source "ChessBase"]
[SourceQuality "1"]
[TimeControl "5400+30"]

1. e4 {[%emt 0:01:32]} c5 {[%emt 0:00:10]} 2. b3 {[%emt 0:00:22]} d6 {[%emt 0:03:00]} 3. d4 {[%emt 0:00:28]} cxd4 {[%emt 0:00:30]} 4. Qxd4 {[%emt 0:00:05]} Nf6 {[%emt 0:00:28]} 5. Nc3 {[%emt 0:00:15]} Nc6 {[%emt 0:00:27]} 6. Qd2 {[%emt 0:00:05]} g6 {[%emt 0:00:17]} 7. Bb2 {[%emt 0:00:05]} Bg7 {[%emt 0:00:04]} 8. O-O-O {[%emt 0:00:13]} O-O {[%emt 0:05:01]} 9. f3 {[%emt 0:00:49]} Bd7 {[%emt 0:01:54]} 10. h4 {[%emt 0:00:23]} Qa5 {[%emt 0:00:25]} 11. Kb1 {[%emt 0:02:23]} Rfc8 {[%emt 0:03:17]} 12. h5 {[%emt 0:05:32]} Nxh5 {[%emt 0:01:53]} 13. Nge2 {[%emt 0:00:06]} Ne5 {[%emt 0:18:29]} 14. Qe1 {[%emt 0:06:30]} b5 {[%emt 0:03:14]} 15. Nd4 {[%emt 0:02:58]} a6 {[%emt 0:02:48]} 16. g4 {[%emt 0:17:39]} Nf6 {[%emt 0:02:31]} 17. g5 {[%emt 0:00:24]} Nh5 {[%emt 0:00:06]} 18. Nd5 {[%emt 0:01:08]} Qxe1 {[%emt 0:00:19]} 19. Rxe1 {[%emt 0:00:06]} Rd8 {[%emt 0:03:41]} 20. Nxe7+ {[%emt 0:00:44]} Kf8 {[%emt 0:00:05]} 21. Nd5 {[%emt 0:00:08]} Nc6 {[%emt 0:04:19]} 22. Nf6 {[%emt 0:09:52]} Bxf6 {[%emt 0:02:45]} 23. gxf6 {[%emt 0:00:06]} Nxd4 {[%emt 0:00:34]} 24. Bxd4 {[%emt 0:00:05]} Kg8 {[%emt 0:01:31]} 25. Rh4 {[%emt 0:01:29]} Re8 {[%emt 0:00:42]} 26. Bd3 {[%emt 0:02:22]} Bc6 {[%emt 0:08:33]} 27. f4 {[%emt 0:06:45]} Ng3 {[%emt 0:02:16]} 28. e5 {[%emt 0:00:29]} dxe5 {[%emt 0:01:33]} 29. fxe5 {[%emt 0:00:05]} Bd7 {[%emt 0:00:10]} 30. Bb2 {[%emt 0:03:21]} Bf5 {[%emt 0:01:27]} 31. Rg1 {[%emt 0:00:40]} Bxd3 {[%emt 0:00:25]} 32. cxd3 {[%emt 0:00:11]} Nf5 {[%emt 0:00:17]} 33. Rf4 {[%emt 0:00:07]} Kh8 {[%emt 0:01:28]} 34. Kc2 {[%emt 0:01:08]} Ra7 {[%emt 0:01:15]} 35. Kd2 {[%emt 0:01:04]} Rd8 {[%emt 0:00:26]} 36. e6 {[%emt 0:00:30]} Rxd3+ {[%emt 0:00:44]} 37. Kxd3 {[%emt 0:00:07]} fxe6 {[%emt 0:00:03]} 38. f7+ {[%emt 0:00:06]} Nd4 {[%emt 0:00:01]} 39. f8=Q# {[%emt 0:00:39]} 1-0

[Event "Centenario Panaderia Pulido 2023"]
[Site "San Mateo Gran Canaria"]
[Date "2023.12.09"]
[Round "9.13"]
[White "Almenares Garcia, Mario Adrian"]
[Black "Arribas Lopez, Sara"]
[Result "1/2-1/2"]
[ECO "A00"]
[WhiteElo "2000"]
[BlackElo "1637"]
[Annotator "NA"]
[PlyCount "130"]
[EventDate "2023.12.04"]
[EventType "swiss"]
[EventCountry "ESP"]
[SourceTitle "playchess.com"]
[Source "ChessBase"]
[SourceQuality "1"]
[TimeControl "5400+30"]

1. e3 {[%emt 0:00:27]} d5 {[%emt 1:31:00]} 2. g3 {[%emt 0:00:10]} e5 {[%emt 0:00:25]} 3. Bg2 {[%emt 0:00:08]} Nf6 {[%emt 0:00:39]} 4. d4 {[%emt 0:00:14]} e4 {[%emt 0:00:43]} 5. Ne2 {[%emt 0:00:10]} c6 {[%emt 0:01:54]} 6. c4 {[%emt 0:00:12]} Bb4+ {[%emt 0:02:46]} 7. Bd2 {[%emt 0:00:15]} Bd6 {[%emt 0:03:13]} 8. h3 {[%emt 0:00:20]} h5 {[%emt 0:01:48]} 9. Nbc3 {[%emt 0:00:12]} a6 {[%emt 0:03:17]} 10. Qb3 {[%emt 0:00:17]} Bc7 {[%emt 0:03:52]} 11. cxd5 {[%emt 0:01:38]} cxd5 {[%emt 0:00:35]} 12. f3 {[%emt 0:00:06]} exf3 {[%emt 0:10:19]} 13. Bxf3 {[%emt 0:00:21]} Ne4 {[%emt 0:00:05]} 14. Nxe4 {[%emt 0:02:02]} dxe4 {[%emt 0:00:32]} 15. Bxe4 {[%emt 1:31:28]} Qe7 {[%emt 0:00:18]} 16. Bg2 {[%emt 0:02:58]} g5 {[%emt 0:04:06]} 17. Rf1 {[%emt 0:00:39]} Nc6 {[%emt 0:02:38]} 18. e4 {[%emt 0:00:56]} f5 {[%emt 0:04:40]} 19. e5 {[%emt 0:00:46]} h4 {[%emt 0:01:22]} 20. gxh4 {[%emt 0:00:32]} gxh4 {[%emt 0:05:11]} 21. O-O-O {[%emt 0:00:10]} a5 {[%emt 0:03:40]} 22. Qb5 {[%emt 0:03:06]} Ra6 {[%emt 0:01:28]} 23. Nf4 {[%emt 0:00:17]} Rb6 {[%emt 0:00:19]} 24. Qc4 {[%emt 0:00:30]} Nb4 {[%emt 0:01:11]} 25. a3 {[%emt 0:00:33]} Na6 {[%emt 0:01:42]} 26. Nd5 {[%emt 0:00:31]} Be6 {[%emt 0:01:00]} 27. Nxc7+ {[%emt 0:01:04]} Nxc7 {[%emt 0:00:15]} 28. Qa4+ {[%emt 0:00:45]} Nb5 {[%emt 0:02:16]} 29. d5 {[%emt 0:02:37]} Qc5+ {[%emt 0:00:26]} 30. Kb1 {[%emt 0:00:43]} Bd7 {[%emt 0:02:09]} 31. Ka1 {[%emt 0:00:53]} Nd4 {[%emt 0:00:42]} 32. Rc1 {[%emt 0:05:09]} Bxa4 {[%emt 0:03:25]} 33. Rxc5 {[%emt 0:00:22]} Nb3+ {[%emt 0:39:27]} 34. Ka2 {[%emt 0:00:46]} Nxc5 {[%emt 0:08:40]} 35. Be3 {[%emt 0:00:14]} Bb3+ {[%emt 0:01:41]} 36. Kb1 {[%emt 0:00:10]} Rg6 {[%emt 0:00:07]} 37. Bh1 {[%emt 0:00:48]} Ne4 {[%emt 0:01:21]} 38. Rc1 {[%emt 0:00:56]} O-O {[%emt 0:00:42]} 39. d6 {[%emt 0:00:58]} Be6 {[%emt 0:10:09]} 40. Rc7 {[%emt 0:01:07]} Rg7 {[%emt 0:01:05]} 41. Rc1 {[%emt 0:03:11]} Rc8 {[%emt 0:01:49]} 42. Rd1 {[%emt 0:01:17]} Ng3 {[%emt 0:01:51]} 43. Bf3 {[%emt 0:00:33]} f4 {[%emt 0:01:36]} 44. Bb6 {[%emt 0:00:13]} Nf5 {[%emt 0:04:19]} 45. Bd5 {[%emt 0:00:31]} Bxd5 {[%emt 0:00:44]} 46. Rxd5 {[%emt 0:00:02]} Ne3 {[%emt 0:00:59]} 47. d7 {[%emt 0:00:20]} Rd8 {[%emt 0:00:15]} 48. Bxd8 {[%emt 0:03:54]} Nxd5 {[%emt 0:00:08]} 49. e6 {[%emt 1:10:44]} Kh7 {[%emt 0:03:15]} 50. Bxh4 {[%emt 0:00:32]} Rg8 {[%emt 0:00:04]} 51. d8=Q {[%emt 0:01:31]} Rxd8 {[%emt 0:00:03]} 52. Bxd8 {[%emt 0:00:11]} f3 {[%emt 0:10:04]} 53. Bh4 {[%emt 0:00:08]} Kg6 {[%emt 0:00:12]} 54. Kc2 {[%emt 0:00:47]} Nf4 {[%emt 0:01:44]} 55. e7 {[%emt 1:10:17]} Kf7 {[%emt 0:00:02]} 56. Kd2 {[%emt 0:01:16]} b5 {[%emt 0:00:51]} 57. b3 {[%emt 0:01:27]} Ke8 {[%emt 0:01:17]} 58. a4 {[%emt 0:01:51]} bxa4 {[%emt 0:00:45]} 59. bxa4 {[%emt 0:00:08]} Nxh3 {[%emt 0:00:12]} 60. Ke3 {[%emt 0:00:16]} f2 {[%emt 0:00:09]} 61. Bxf2 {[%emt 0:02:13]} Nxf2 {[%emt 0:00:11]} 62. Kxf2 {[%emt 0:00:09]} Kxe7 {[%emt 0:00:02]} 63. Ke3 {[%emt 0:00:08]} Kd6 {[%emt 0:00:03]} 64. Kd4 {[%emt 1:05:57]} Kc6 {[%emt 0:00:02]} 65. Kc4 {[%emt 0:01:12]} Kb6 {[%emt 0:00:03]} 1/2-1/2

[Event "Centenario Panaderia Pulido 2023"]
[Site "San Mateo Gran Canaria"]
[Date "2023.12.09"]
[Round "9.14"]
[White "Sanchez Gonzalez, Diego"]
[Black "Rivero Pena, Himar"]
[Result "1-0"]
[ECO "E90"]
[WhiteElo "1858"]
[BlackElo "1594"]
[Annotator "NA"]
[PlyCount "63"]
[EventDate "2023.12.04"]
[EventType "swiss"]
[EventCountry "ESP"]
[SourceTitle "playchess.com"]
[Source "ChessBase"]
[SourceQuality "1"]
[TimeControl "5400+30"]

1. e4 {[%emt 0:00:02]} g6 {[%emt 0:02:20]} 2. d4 {[%emt 0:00:15]} Bg7 {[%emt 0:00:03]} 3. c4 {[%emt 0:00:29]} d6 {[%emt 0:00:32]} 4. Nf3 {[%emt 0:00:06]} Nf6 {[%emt 0:02:24]} 5. Nc3 {[%emt 0:00:11]} O-O {[%emt 0:00:15]} 6. h3 {[%emt 0:00:21]} b6 {[%emt 0:01:10]} 7. Be3 {[%emt 0:01:52]} Bb7 {[%emt 0:00:05]} 8. Nd2 {[%emt 0:01:33]} e6 {[%emt 0:06:02]} 9. Bd3 {[%emt 0:01:49]} d5 {[%emt 0:00:46]} 10. e5 {[%emt 0:07:57]} Nfd7 {[%emt 0:00:05]} 11. cxd5 {[%emt 0:02:21]} exd5 {[%emt 0:00:46]} 12. O-O {[%emt 0:01:11]} c5 {[%emt 0:00:19]} 13. f4 {[%emt 0:01:03]} cxd4 {[%emt 0:09:18]} 14. Bxd4 {[%emt 0:00:34]} Nc5 {[%emt 0:00:15]} 15. Bc2 {[%emt 0:00:09]} Nc6 {[%emt 0:00:15]} 16. Bf2 {[%emt 0:00:17]} d4 {[%emt 0:06:58]} 17. Nb5 {[%emt 0:10:37]} Ba6 {[%emt 0:01:39]} 18. a4 {[%emt 0:01:00]} Nb4 {[%emt 0:09:34]} 19. Nc4 {[%emt 0:06:01]} Bxb5 {[%emt 0:05:39]} 20. axb5 {[%emt 0:00:13]} d3 {[%emt 0:00:06]} 21. Bb1 {[%emt 0:00:44]} Qd5 {[%emt 0:01:45]} 22. Nd6 {[%emt 0:03:26]} f6 {[%emt 0:01:09]} 23. Bxc5 {[%emt 0:24:55]} bxc5 {[%emt 0:02:06]} 24. Rf3 {[%emt 0:04:34]} fxe5 {[%emt 0:24:09]} 25. Bxd3 {[%emt 0:06:53]} Qd4+ {[%emt 0:00:08]} 26. Kh1 {[%emt 0:01:55]} Nxd3 {[%emt 0:01:29]} 27. Rxd3 {[%emt 0:00:15]} Qxb2 {[%emt 0:00:27]} 28. Rb1 {[%emt 0:01:46]} Qf2 {[%emt 0:00:06]} 29. Qb3+ {[%emt 0:00:14]} Kh8 {[%emt 0:01:54]} 30. Nf7+ {[%emt 0:00:26]} Kg8 {[%emt 0:00:05]} 31. Nh6+ {[%emt 0:00:13]} Kh8 {[%emt 0:00:13]} 32. Qg8+ {[%emt 0:00:08]} 1-0

[Event "Centenario Panaderia Pulido 2023"]
[Site "San Mateo Gran Canaria"]
[Date "2023.12.09"]
[Round "9.15"]
[White "Rivero Reyes, Alejandro"]
[Black "Ramirez Maillo, Juan Adonay"]
[Result "0-1"]
[ECO "B30"]
[WhiteElo "1689"]
[BlackElo "1857"]
[Annotator "NA RC"]
[PlyCount "28"]
[EventDate "2023.12.04"]
[EventType "swiss"]
[EventCountry "ESP"]
[SourceTitle "playchess.com"]
[Source "ChessBase"]
[SourceQuality "1"]
[TimeControl "5400+30"]

1. e4 {[%emt 0:00:34]} c5 {[%emt 0:00:04]} 2. Nf3 {[%emt 0:00:06]} Nc6 {[%emt 0:00:31]} 3. Bb5 {[%emt 0:00:32]} e5 {[%emt 0:00:08]} 4. Bxc6 {[%emt 0:00:29]} dxc6 {[%emt 1:31:47]} 5. O-O {[%emt 1:31:19]} Bd6 {[%emt 0:00:30]} 6. d3 {[%emt 0:00:30]} Ne7 {[%emt 0:00:30]} 7. a4 {[%emt 0:00:00]} a5 {[%emt 0:00:30]} 8. b3 {[%emt 0:01:00]} Ng6 {[%emt 0:00:00]} 9. Nbd2 {[%emt 0:00:00]} Bc7 {[%emt 0:00:00]} 10. Nc4 {[%emt 0:00:00]} f6 {[%emt 0:00:00]} 11. Ne3 {[%emt 0:00:00]} h5 {[%emt 0:00:00]} 12. Nf5 {[%emt 0:00:00]} Bxf5 {[%emt 0:00:00]} 13. exf5 {[%emt 0:00:00]} Ne7 {[%emt 0:00:00]} 14. Nh4 {[%emt 0:00:00]} Qd4 {[%emt 0:00:00]} 0-1